Cogmind - Beta 15 @@@ ROGUE MODE // 2025.06.15 @ 20:24:12 Player: naththebg Result: Core destroyed Performance ------------- Evolutions (8) 4000 Regions Visited (29) 5800 Robots Destroyed (123) 615 Value Destroyed (5497) 5497 Prototype IDs (186) 3720 Alien Tech Used (5) 1000 Bonus (5774) 5774 TOTAL SCORE: 26406 Bonus ------- High Alert Combat Kills 530 Follower Combat Kills 210 Registered with UFD 300 Met Optimus in HQ 500 Met Data Miner 300 Found Hidden Lab 3000 Pursued by Intercept 1000 Met Optimus at Protoforge 1000 Friendly Fire -1066 Cogmind --------- Core Integrity 0/1450 Matter 235/300 Energy 193/515 System Corruption 10% Temperature Critical (1503) Movement Treading (160) Ox1 Location -2/Protoforge Parts ------- > --- POWER (2) -------- Overtuned Antimatter Reactor Light Quantum Reactor > --- PROPULSION (7) --- Overtuned Medium Treads Overtuned Medium Treads Overtuned Medium Treads Overtuned Medium Treads > --- UTILITY (11) ----- 0bPrime Scrap Suit Light Humpback Experimental Optical Array Experimental Core Analyzer Experimental Core Analyzer Experimental Armor Integrity Analyzer Advanced Phase Shifter Makeshift Propulsion Shielding Concept Antimissile System > --- WEAPON (5) ------- Concept Variable Chargecaster Concept Variable Chargecaster Concept Variable Chargecaster Railgun Overtuned Linear Accelerator > --- INVENTORY (25) --- Heavy Machine Gun KE Penetrator UFD Drillbomb UFD Drillbomb Peak State ------------ > --- POWER ------------ Overtuned Antimatter Reactor Hybrid Graviton Reactor > --- PROPULSION ------- Overtuned Huge Scrapsphere Experimental Surge Thruster Experimental Surge Thruster Experimental Surge Thruster Experimental Surge Thruster Experimental Surge Thruster > --- UTILITY ---------- 0bPrime Scrap Suit Experimental Heat Sink Large Storage Unit Plexus Tether Enhanced Optical Array Advanced Signal Interpreter Experimental Core Analyzer Experimental Armor Integrity Analyzer Experimental Reaction Control System Advanced Phase Shifter > --- WEAPON ----------- Concept Variable Chargecaster Concept Variable Chargecaster Concept Variable Chargecaster Concept Variable Chargecaster KE Penetrator > --- INVENTORY -------- Light Particle Reactor Quantum Reactor Improved Quantum Reactor Experimental Energy Well UFD Drillbomb [Rating: 234] Favorites ----------- Power Light Neutrino Core Engine Ion Engine Power Core Light Neutrino Core Reactor Hybrid Graviton Reactor Propulsion Improved VTOL Module Treads Overtuned Medium Treads Leg Aluminum Leg Wheel Overtuned Huge Scrapsphere Flight Unit Improved VTOL Module Utility Medium Storage Unit Device Advanced Sensor Array Storage Medium Storage Unit Processor Advanced Signal Interpreter Hackware Hacking Suite Protection Improved Propulsion Shielding Weapon Power Maul Energy Gun Concept Variable Chargecaster Energy Cannon Potential Cannon Ballistic Gun KE Penetrator Ballistic Cannon Overtuned Linear Accelerator Launcher Advanced EMP Blaster Special Weapon Flamer Impact Weapon Power Maul Slashing Weapon Katana Piercing Weapon Plasma Lance Special Melee Weapon Improved Datajack Build | -11 -10 -10 -10 -9 -8 -8 -8 -8 -6 -6 -6 -6 -6 -6 -5 -5 -5 -5 -5 -5 -5 -4 -4 -4 -4 -3 -2 -2 -2 ------- Run | Yrd Mat Min Exi Min Mat Sto Rec Scr Fac Was Fac Low Low Dat Pro Fac Was Fac Upp Upp Zhi Pro Fac Arm Lab Res Res Qua Frg Slots Evolved 16 | . . . . . 4 . . . 4 . . . . . . 2 . . . . . . 2 . . 2 2 . . Power 1 | . . . . . . . . . 1 . . . . . . . . . . . . . . . . . . . . Propulsion 4 | . . . . . 2 . . . 1 . . . . . . . . . . . . . . . . 1 . . . Utility 9 | . . . . . 2 . . . 2 . . . . . . 2 . . . . . . 2 . . . 1 . . Weapon 2 | . . . . . . . . . . . . . . . . . . . . . . . . . . 1 1 . . Parts Attached 177 | 6 7 2 . . 40 2 2 2 8 . 3 . 1 . . 13 1 1 3 . 2 2 16 2 4 4 4 1 51 Power 18 | 1 . . . . 3 . 1 . 1 . . . . . . 4 1 . . . . . . 1 . . . . 6 Engine 5 | 1 . . . . 2 . . . . . . . . . . 2 . . . . . . . . . . . . . Core 8 | . . . . . 1 . 1 . 1 . . . . . . 2 1 . . . . . . 1 . . . . 1 Reactor 5 | . . . . . . . . . . . . . . . . . . . . . . . . . . . . . 5 Propulsion 57 | 2 4 2 . . 15 . . . 2 . . . . . . 3 . . . . 1 1 5 . . 3 . . 19 Treads 5 | . . . . . . . . . . . . . . . . . . . . . . . . . . . . . 5 Leg 24 | 2 4 2 . . 11 . . . . . . . . . . . . . . . . . . . . . . . 5 Wheel 1 | . . . . . . . . . . . . . . . . . . . . . . . . . . . . . 1 Hover . | . . . . . . . . . . . . . . . . . . . . . . . . . . . . . . Flight 27 | . . . . . 4 . . . 2 . . . . . . 3 . . . . 1 1 5 . . 3 . . 8 Utility 65 | 1 1 . . . 12 1 1 . 5 . 3 . 1 . . 4 . 1 . . 1 . 9 1 2 1 2 1 18 Device 33 | . 1 . . . 7 . . . 3 . 1 . 1 . . 1 . 1 . . . . 7 1 . . 2 1 7 Storage 6 | 1 . . . . 2 . . . . . . . . . . . . . . . . . . . . 1 . . 2 Processor 9 | . . . . . 1 . . . 2 . 1 . . . . . . . . . . . . . . . . . 5 Hackware 11 | . . . . . 1 . 1 . . . 1 . . . . 3 . . . . 1 . 2 . 2 . . . . Protection 6 | . . . . . 1 1 . . . . . . . . . . . . . . . . . . . . . . 4 Artifact . | . . . . . . . . . . . . . . . . . . . . . . . . . . . . . . Weapon 37 | 2 2 . . . 10 1 . 2 . . . . . . . 2 . . 3 . . 1 2 . 2 . 2 . 8 Energy Gun 16 | 2 2 . . . 5 . . . . . . . . . . . . . . . . 1 . . 1 . 1 . 4 Energy Cannon 1 | . . . . . . . . . . . . . . . . . . . . . . . . . 1 . . . . Ballistic Gun 3 | . . . . . 3 . . . . . . . . . . . . . . . . . . . . . . . . Ballistic Cannon 8 | . . . . . . . . . . . . . . . . 1 . . 2 . . . . . . . 1 . 4 Launcher 1 | . . . . . 1 . . . . . . . . . . . . . . . . . . . . . . . . Special Weapon 2 | . . . . . . 1 . . . . . . . . . . . . 1 . . . . . . . . . . Impact Weapon 3 | . . . . . . . . 1 . . . . . . . 1 . . . . . . 1 . . . . . . Slashing Weapon 1 | . . . . . 1 . . . . . . . . . . . . . . . . . . . . . . . . Piercing Weapon . | . . . . . . . . . . . . . . . . . . . . . . . . . . . . . . Special Melee Weapon 2 | . . . . . . . . 1 . . . . . . . . . . . . . . 1 . . . . . . Unidentified Prototypes 27 | . . . . . 3 . . . 1 . . . . . . 2 . . . . 1 . 3 1 4 1 . 1 10 Parts Lost 68 | . 1 . . . 11 1 . . 1 . 1 . 2 . . 4 . . . . . 1 6 . 2 . 7 1 30 Power 7 | . . . . . 1 1 . . . . . . . . . . . . . . . . . . . . 1 . 4 Propulsion 23 | . . . . . 4 . . . . . . . . . . 3 . . . . . . 3 . . . 1 . 12 Utility 25 | . . . . . 3 . . . 1 . 1 . 2 . . . . . . . . . 3 . 2 . 3 . 10 Weapon 13 | . 1 . . . 3 . . . . . . . . . . 1 . . . . . 1 . . . . 2 1 4 Highest Loss Streak 9 | . 1 . . . 4 1 . . 1 . 1 . 1 . . 4 . . . . . 1 5 . 2 . 7 1 9 To Critical Strikes 1 | . . . . . . . . . . . . . . . . . . . . . . . . . . . . . 1 Average Backups 8 | 2 7 8 8 8 9 9 9 10 8 10 9 10 9 9 9 8 9 8 8 9 9 9 9 10 8 8 11 11 4 Power 1 | . 1 1 1 1 1 1 . . 1 2 1 1 1 1 1 1 3 1 1 1 1 1 1 1 . 1 2 3 1 Propulsion 3 | 1 5 6 6 6 6 5 3 3 2 3 2 2 2 2 2 2 1 2 2 2 1 1 2 3 3 2 2 1 . Utility 2 | . . . . . 1 3 5 6 5 5 5 6 5 5 5 4 4 4 4 4 4 4 3 4 3 3 3 2 . Weapon . | . 1 1 1 1 . . . . . . . 1 1 1 1 . 1 1 1 2 2 1 1 1 1 1 1 2 1 Tool/Special . | . . . . . . . . . . . . . . . . . . . . . . . . . . . . . . Unused Backups 30 | . 2 . . . 8 . 2 1 . . 5 . . . . 4 . 2 . . . . . 1 . . 2 . 3 Power 8 | . . . . . 1 . . . . . 1 . . . . 2 . 1 . . . . . . . . . . 3 Propulsion 14 | . 2 . . . 7 . 2 . . . 1 . . . . . . 1 . . . . . . . . 1 . . Utility 7 | . . . . . . . . 1 . . 2 . . . . 2 . . . . . . . 1 . . 1 . . Weapon . | . . . . . . . . . . . . . . . . . . . . . . . . . . . . . . Tool/Special 1 | . . . . . . . . . . . 1 . . . . . . . . . . . . . . . . . . Average Slot Usage (%) 89 | . 92 100 100 100 91 90 90 99 92 93 93 93 91 86 86 98 94 94 99 100 100 99 96 94 88 90 87 65 67 Engine 3 | . 14 14 14 14 7 . . . . . . . . . . 7 . . . . . . . . . . . . . Core 4 | . . . . . 1 9 9 9 6 6 6 6 6 6 6 2 11 11 11 11 11 11 10 10 10 9 7 4 . Reactor 1 | . . . . . . . . . . . . . . . . . . . . . . . . . . . . . 6 Leg 9 | . 28 28 28 28 33 . . . . . . . . . . . . . . . . . . . . . . . 3 Flight 17 | . . . . . . 36 36 36 33 33 33 33 33 33 33 29 29 29 29 29 29 29 24 21 21 23 21 21 7 Device 10 | . 7 14 14 14 15 9 9 9 6 6 6 6 9 6 6 10 11 11 11 11 11 11 18 21 13 14 16 5 6 Storage 6 | . 14 14 14 14 9 9 9 9 6 6 6 6 6 6 6 5 5 5 5 5 5 5 5 5 5 4 4 4 3 Processor 9 | . . . . . 4 9 9 9 12 13 13 13 13 13 13 11 11 11 11 11 11 11 10 10 10 9 8 8 15 Hackware 6 | . . . . . . . 5 9 6 6 5 6 6 6 6 16 17 17 17 17 17 17 15 15 16 19 17 17 3 Protection 2 | . . . . . 1 8 3 . 5 6 6 6 1 . . . . . . . . . . . . . . . 4 Energy Gun 6 | . 27 28 28 28 13 . . . . . . . . . . . . . . . . 3 . . . . 1 . 4 Impact Weapon 2 | . . . . . . . . 7 6 6 6 6 6 6 6 5 5 5 5 5 5 5 5 5 5 4 4 3 . Special Melee Weapon 2 | . . . . . . . . 8 6 6 6 6 6 6 6 4 . . . . . . 4 5 4 4 4 . . Peak Build Rating 234 | 6 10 10 10 10 41 35 33 38 56 56 58 56 57 52 52 78 76 79 83 79 83 88 112 114 118 132 153 108 234 Average Rating 74 | 5 8 10 10 10 29 33 33 37 49 56 55 56 55 52 52 73 76 77 79 79 81 85 103 113 107 125 139 102 163 On Entrance 59 | . 6 10 10 10 10 33 30 33 38 56 56 56 56 52 52 52 76 76 76 79 79 83 88 112 104 118 132 96 103 Naked Turns . | . . . . . . . . . . . . . . . . . . . . . . . . . . . . . . Heaviest Build 141 | 13 16 16 16 16 33 21 20 20 25 24 25 22 22 20 20 34 30 30 40 32 32 36 35 37 37 44 50 36 141 Greatest Support 100 | 20 20 20 20 20 80 20 20 20 25 25 27 27 27 25 27 38 35 35 37 35 37 39 45 40 45 53 53 39 100 Greatest Overweight (x) 7 | 1 . . . . 1 1 . . 1 . . . . . . 1 . . 1 . . . . . . . . . 7 Average Overweight (x) . | . . . . . . . . . . . . . . . . . . . . . . . . . . . . . 1 Largest Inventory Capacity 25 | 8 8 8 8 8 10 10 10 10 10 10 10 10 10 10 10 10 10 10 10 10 10 10 10 10 10 15 15 15 25 Average Capacity 10 | 7 8 8 8 8 9 10 10 10 10 10 10 10 10 10 10 10 10 10 10 10 10 10 10 10 10 11 15 15 14 Most Carried 23 | 6 8 8 8 8 10 10 10 10 10 10 10 10 10 9 9 10 10 10 10 10 10 10 10 10 10 13 15 15 23 Average Carried 9 | 2 7 8 8 8 9 9 9 9 8 10 9 10 9 9 9 8 9 9 9 10 9 10 9 9 9 10 14 14 10 Final Capacity 25 | 8 8 8 8 8 10 10 10 10 10 10 10 10 10 10 10 10 10 10 10 10 10 10 10 10 10 15 15 15 25 Final Carried 22 | 6 8 8 8 8 10 10 10 10 10 10 10 10 9 9 9 10 10 9 10 10 10 10 10 10 10 13 13 15 22 Class Distribution -------------------- 22% | Scavenger-Mutant 21% | Hacker-Scout 15% | Scout 11% | Mutant 6% | Sprinter 5% | Wizard-Sprinter 3% | Scavenger-Gunner Dominant Class ---------------- Scavenger-Mutant | -10/Materials Scavenger-Mutant | -10/Mines Scavenger-Mutant | -10/Exiles Scavenger-Mutant | -9/Mines Scavenger-Mutant | -8/Materials Sprinter | -8/Storage Sprinter | -8/Recycling Sprinter | -8/Scraptown Scout | -6/Factory Scout | -6/Waste Scout | -6/Factory Scout | -6/Lower Caves Scout | -6/Lower Caves Scout | -6/Data Miner Scout | -5/Proximity Caves Hacker-Scout | -5/Factory Hacker-Scout | -5/Waste Hacker-Scout | -5/Factory Hacker-Scout | -5/Upper Caves Hacker-Scout | -5/Upper Caves Hacker-Scout | -5/Zhirov Hacker-Scout | -4/Proximity Caves Hacker-Scout | -4/Factory Hacker-Scout | -4/Armory Hacker-Scout | -4/Lab Wizard-Sprinter | -3/Research Wizard-Sprinter | -2/Research Wizard-Sprinter | -2/Quarantine Scavenger-Mutant | -2/Protoforge Resources | -11 -10 -10 -10 -9 -8 -8 -8 -8 -6 -6 -6 -6 -6 -6 -5 -5 -5 -5 -5 -5 -5 -4 -4 -4 -4 -3 -2 -2 -2 ----------- Run | Yrd Mat Min Exi Min Mat Sto Rec Scr Fac Was Fac Low Low Dat Pro Fac Was Fac Upp Upp Zhi Pro Fac Arm Lab Res Res Qua Frg Matter Collected 3203 | 238 60 24 . . 622 29 . 70 70 . 9 . 43 . 28 92 . . 323 25 40 30 53 . 64 195 . . 1188 Remotely 166 | . . . . . 166 . . . . . . . . . . . . . . . . . . . . . . . . Salvage Created 6272 | 61 487 91 . . 1776 66 . . 109 . 9 . . . 11 84 . . 212 . 265 . 78 . 64 195 . . 2764 Parts 254 | 2 17 2 . . 84 6 . . . . . . . . 1 . . . 6 . 1 . 4 . 2 4 . . 125 Haulers Intercepted 4 | . . . . . 4 . . . . . . . . . . . . . . . . . . . . . . . . Recyclers Shooed 5 | . 3 . . . 2 . . . . . . . . . . . . . . . . . . . . . . . . Parts Field Recycled . | . . . . . . . . . . . . . . . . . . . . . . . . . . . . . . Retrieved Matter . | . . . . . . . . . . . . . . . . . . . . . . . . . . . . . . Parts Self-Destructed 10 | . . . . . . . . . . . . 2 . . 2 . . . 6 . . . . . . . . . . Prevented 1 | . . . . . . . . . . . . . . . . . . . . . 1 . . . . . . . . Kills | -11 -10 -10 -10 -9 -8 -8 -8 -8 -6 -6 -6 -6 -6 -6 -5 -5 -5 -5 -5 -5 -5 -4 -4 -4 -4 -3 -2 -2 -2 ------- Run | Yrd Mat Min Exi Min Mat Sto Rec Scr Fac Was Fac Low Low Dat Pro Fac Was Fac Upp Upp Zhi Pro Fac Arm Lab Res Res Qua Frg Combat Hostiles Destroyed 85 | . 9 2 . . 27 . . . 1 . . . . . 1 . . . 4 . . . . . 1 . . . 40 Melee 2 | . . . . . . . . . 1 . . . . . 1 . . . . . . . . . . . . . . Guns 52 | . 8 2 . . 26 . . . . . . . . . . . . . . . . . . . . . . . 16 Cannons 15 | . . . . . . . . . . . . . . . . . . . 4 . . . . . . . . . 11 AOE 13 | . . . . . . . . . . . . . . . . . . . . . . . . . . . . . 13 Classes Destroyed 20 | 1 2 . . . 7 . . . 2 . . . . . . . . . . . . . 1 . . 1 . . 6 Worker 5 | . . . . . 2 . . . . . . . . . . . . . . . . . . . . 3 . . . Builder 1 | . . . . . . . . . . . . . . . . . . . . . . . 1 . . . . . . Tunneler 1 | . . . . . . . . . . . . . . . . . . . . . . . . . . 1 . . . Hauler 5 | . . . . . 4 . . . . . . . . . . . . . . . . . . . . . . . 1 Recycler 7 | 1 1 . . . 4 . . . . . . . . . . . . . . . . . . . . 1 . . . Mechanic 1 | . . . . . . . . . . . . . . . . . . . . . . . . . . . . . 1 Operator 6 | . . . . . . . . . 3 . 1 . . . . . . . . . . . 1 . . 1 . . . Drone 2 | . . . . . . . . . . . . . . . . . . . . . . . . . . . . . 2 Watcher 9 | . 2 . . . 1 1 . . 1 . . . . . . 3 . . . . . . 1 . . . . . . Swarmer 13 | . . . . . 6 . . . . . . . . . 1 . . . . . . . . . . . . . 6 Grunt 38 | . 9 2 . . 14 . . . . . . . . . . . . . 3 . . . . . . . . . 10 Brawler 4 | . . . . . 1 . . . . . . . . . . . . . 1 . . . . . . . . . 2 Duelist 2 | . . . . . . . . . . . . . . . . . . . . . . . . . . . . . 2 Sentry 3 | . . . . . 2 . . . . . . . . . . . . . . . . . . . . . . . 1 Specialist 2 | . . . . . 2 . . . . . . . . . . . . . . . . . . . . . . . . Hunter 4 | . . . . . 2 . . . . . . . . . . . . . . . . . . . . . . . 2 Programmer 6 | . . . . . . . . . 1 . . . . . . . . . . . . . . . . . . . 5 Striker 7 | . . . . . . . . . . . . . . . . . . . . . . . . . . . . . 7 Executioner 3 | . . . . . . . . . . . . . . . . . . . . . . . . . . . . . 3 Scrapoid 4 | . . . . . . . . . . . . . . . . . . . . . . . . . . . . . 4 Best Kill Streak 18 | 1 2 1 . . 5 1 . . 1 . 1 . . . 1 1 . . 2 . . . 1 . 1 4 . . 18 Combat Bots Only 18 | . 2 1 . . 3 . . . 1 . . . . . 1 . . . 2 . . . . . 1 . . . 18 Max Kills in Single Turn 3 | 1 1 1 . . 1 1 . . 1 . 1 . . . 1 1 . . 1 . . . 1 . 1 1 . . 3 Gunslinging . | . . . . . . . . . . . . . . . . . . . . . . . . . . . . . . Exploded 3 | . . . . . . . . . . . . . . . . . . . . . . . . . . . . . 3 Melee 1 | . . . . . . . . . 1 . . . . . 1 . . . . . . . . . . . . . . Uniques/NPCs Destroyed 1 | . . . . . . . . . . . . . . . . . . . . . . . . . 1 . . . . A5 (-4/Lab) Combat | -11 -10 -10 -10 -9 -8 -8 -8 -8 -6 -6 -6 -6 -6 -6 -5 -5 -5 -5 -5 -5 -5 -4 -4 -4 -4 -3 -2 -2 -2 -------- Run | Yrd Mat Min Exi Min Mat Sto Rec Scr Fac Was Fac Low Low Dat Pro Fac Was Fac Upp Upp Zhi Pro Fac Arm Lab Res Res Qua Frg Hostile Shots Fired 1173 | . 55 8 . . 160 48 . . 38 . 46 15 9 . 3 47 . 3 11 . . 13 80 . 20 10 47 18 542 Missed 457 | . 19 3 . . 40 33 . . 18 . 36 12 6 . 2 13 . 1 5 . . 10 50 . 12 10 23 11 153 Hits 716 | . 36 5 . . 120 15 . . 20 . 10 3 3 . 1 34 . 2 6 . . 3 30 . 8 . 24 7 389 Melee 9 | . . . . . 1 . . . . . . . . . . . . . . . . . . . . . . . 8 Projectile 707 | . 36 5 . . 119 15 . . 20 . 10 3 3 . 1 34 . 2 6 . . 3 30 . 8 . 24 7 381 Critical Strikes 38 | . . 1 . . 4 . . . . . . . . . . 3 . . . . . 1 2 . . . 1 2 24 Part Disruptions 1 | . . . . . . . . . . . . . . . . 1 . . . . . . . . . . . . . Damage Taken 16245 | . 478 75 . . 1830 172 . . 460 . 94 33 136 . 20 686 . 33 111 . . 58 581 . 211 . 571 112 10584 Core 2719 | . 119 . . . 357 50 . . 146 . 17 10 34 . 20 146 . . . . . . 92 . 48 . 109 17 1554 Absorbed by Shields . | . . . . . . . . . . . . . . . . . . . . . . . . . . . . . . Reduced by Siege Mode 25 | . . . . . . . . . . . . . . . . . . . . . . . . . . . . . 25 Redirected to Shielding 192 | . . . . . . 35 . . 76 . 18 11 32 . . . . . . . . . . . . . . . 20 Ignored by Resistances 114 | . . . . . . . . . . . . . . . . . . . . . . . . . . . 81 33 . Regen/Repaired (Parts) 1237 | . . . . . . . . 167 45 . 36 . . . . 38 . 39 . . . . 138 104 . . 42 . 628 Core Remaining (%) 73 | 100 . . . 52 . . . 26 . . . . . . 73 . . . . . . 85 . . 79 100 . . . Volleys Fired 321 | 2 51 7 . . 144 . . . . . . . . . . 2 . . 21 . . . 1 . . . 2 . 91 Largest 5 | 2 2 2 . . 2 . . . . . . . . . . 1 . . 1 . . . 1 . . . 1 . 5 Hottest 947 | 90 115 115 . . 138 . . . . . . . . . . 44 . . 55 . . . 55 . . . 58 . 947 Shots Fired 613 | 4 100 14 . . 241 . . . . . . . . . . 2 . . 21 . . . 1 . . . 2 . 228 Gun 515 | 4 100 14 . . 241 . . . . . . . . . . . . . . . . . . . . . . . 156 Cannon 98 | . . . . . . . . . . . . . . . . 2 . . 21 . . . 1 . . . 2 . 72 Launcher . | . . . . . . . . . . . . . . . . . . . . . . . . . . . . . . Special . | . . . . . . . . . . . . . . . . . . . . . . . . . . . . . . Kinetic 144 | . . . . . 56 . . . . . . . . . . 2 . . 21 . . . 1 . . . 2 . 62 Thermal 469 | 4 100 14 . . 185 . . . . . . . . . . . . . . . . . . . . . . . 166 Explosive . | . . . . . . . . . . . . . . . . . . . . . . . . . . . . . . Electromagnetic . | . . . . . . . . . . . . . . . . . . . . . . . . . . . . . . Robot Hit Streak 15 | 2 11 4 . . 14 . . . . . . . . . . . . . 4 . . . . . . . . . 15 Robot Miss Streak 6 | 1 4 1 . . 5 . . . . . . . . . . . . . 2 . . . . . . . . . 6 Penetration Max 1 | . . . . . . . . . . . . . . . . . . . . . . . . . . . . . 1 Secondary Targets 7 | . 1 . . . . . . . . . . . . . . . . . . . . . . . . . . . 6 Max Gunslinging Chain 1 | . 1 . . . . . . . . . . . . . . . . . . . . . . . . . . . 1 Shots Hit Robots 441 | 2 65 9 . . 166 2 . 1 11 . 2 . 1 . 1 6 . . 14 . 5 . 5 1 8 6 2 . 134 Core Hits 202 | 3 24 4 . . 74 2 . . 1 . . . . . 1 . . . 5 . . . 1 . . 2 . . 85 Critical Kills 3 | . . . . . . . . . . . . . . . 1 . . . . . . . . . . 2 . . . Critical Parts Destroyed 9 | . . . . . . . . . 2 . 1 . . . . . . . . . 2 . . . 1 3 . . . Critical Strikes 35 | . 6 . . . 11 . . . 2 . 1 . . . 1 . . . 1 . 2 . . . 1 5 . . 5 Burn 17 | . 6 . . . 11 . . . . . . . . . . . . . . . . . . . . . . . . Blast 6 | . . . . . . . . . . . . . . . . . . . 1 . . . . . . . . . 5 Smash 12 | . . . . . . . . . 2 . 1 . . . 1 . . . . . 2 . . . 1 5 . . . Melee Attacks 195 | . . . . . 1 21 . 1 41 . 25 3 1 . 1 25 . 4 2 . 5 1 27 7 13 9 6 2 . Impact 160 | . . . . . . . . . 39 . 24 3 . . 1 23 . 4 2 . 5 1 25 6 12 9 4 2 . Slashing 22 | . . . . . 1 21 . . . . . . . . . . . . . . . . . . . . . . . Piercing . | . . . . . . . . . . . . . . . . . . . . . . . . . . . . . . Sneak Attacks 23 | . . . . . . . . 1 2 . 2 . 1 . 1 3 . . . . . . 3 1 1 6 2 . . Combat Hostiles 3 | . . . . . . . . . . . . . . . 1 1 . . . . . . . . 1 . . . . Follow-up Attacks . | . . . . . . . . . . . . . . . . . . . . . . . . . . . . . . Damage Inflicted 19874 | 33 837 144 . 4 2670 104 . . 535 . 106 . . . 96 327 . . 510 . 552 . 201 . 846 684 . . 12225 Guns 7787 | 23 827 127 . . 2620 . . . . . . . . . . . . . . . . . . . . . . . 4190 Cannons 3946 | . . . . . . . . . . . . . . . . . . . 510 . . . . . . . . . 3436 Explosions 4587 | . . . . . . . . . . . . . . . . . . . . . . . . . . . . . 4587 Melee 3482 | . . . . . 31 104 . . 535 . 106 . . . 96 327 . . . . 552 . 201 . 846 684 . . . Ramming 72 | 10 10 17 . 4 19 . . . . . . . . . . . . . . . . . . . . . . . 12 Kinetic 2804 | . . . . . 547 . . . . . . . . . . . . . 510 . . . . . . . . . 1747 Thermal 13516 | 23 827 127 . . 2073 . . . . . . . . . . . . . . . . . . . . . . . 10466 Explosive . | . . . . . . . . . . . . . . . . . . . . . . . . . . . . . . Electromagnetic . | . . . . . . . . . . . . . . . . . . . . . . . . . . . . . . Impact 3347 | . . . . . . . . . 535 . 106 . . . 96 327 . . . . 552 . 201 . 846 684 . . . Slashing 135 | . . . . . 31 104 . . . . . . . . . . . . . . . . . . . . . . . Piercing . | . . . . . . . . . . . . . . . . . . . . . . . . . . . . . . Highest Corruption 10 | . . . . . 3 4 4 . 1 1 1 1 1 1 1 6 6 6 4 4 4 4 . . 2 . 2 3 10 Average Corruption 4 | . . . . . 2 3 4 . 1 1 1 1 1 1 1 2 6 4 4 4 4 4 . . 1 . 1 2 8 Corruption Purged 6 | . . . . . . . . . . . . . . . . . . 6 . . . . . . . . . . . Corruption Blocked . | . . . . . . . . . . . . . . . . . . . . . . . . . . . . . . Effects 130 | . . . . . 23 7 1 . . . 3 2 1 . 1 4 1 3 9 2 2 3 . . 3 . . 2 63 Message Errors 36 | . . . . . 7 . . . . . 2 1 1 . 1 2 1 . 3 1 1 1 . . 2 . . . 13 Matter Fused 26 | . . . . . 5 2 . . . . . 1 . . . . . 1 1 1 . 1 . . 1 . . 1 12 Heat Flow Errors 25 | . . . . . 5 3 1 . . . . . . . . 1 . 1 . . . . . . . . . 1 13 Energy Discharges 11 | . . . . . . 2 . . . . . . . . . 1 . . 1 . . . . . . . . . 7 Parts Rejected 1 | . . . . . . . . . . . . . . . . . . . . . . . . . . . . . 1 Parts Fused 1 | . . . . . . . . . . . . . . . . . . . 1 . . . . . . . . . . Data Loss (minor) 9 | . . . . . 1 . . . . . 1 . . . . . . . 3 . . 1 . . . . . . 3 Data Loss (major) 4 | . . . . . 1 . . . . . . . . . . . . 1 . . 1 . . . . . . . 1 Misfires 1 | . . . . . 1 . . . . . . . . . . . . . . . . . . . . . . . . Alerts 2 | . . . . . 1 . . . . . . . . . . . . . . . . . . . . . . . 1 Misdirections 6 | . . . . . . . . . . . . . . . . . . . . . . . . . . . . . 6 Weapon Failures 8 | . . . . . 2 . . . . . . . . . . . . . . . . . . . . . . . 6 Overload Shots 5 | . . . . . . . . . . . . . . . . . . . . . . . . . . . . . 5 Overflow Damage 2609 | . . . . . . . . . 333 . 106 . . . . 112 . . . . 512 . 91 . 251 433 . . 771 Projectiles 441 | . . . . . . . . . . . . . . . . . . . . . . . . . . . . . 441 Explosions 330 | . . . . . . . . . . . . . . . . . . . . . . . . . . . . . 330 Melee 1838 | . . . . . . . . . 333 . 106 . . . . 112 . . . . 512 . 91 . 251 433 . . . Knockbacks 24 | . . 1 . . . . . . 5 . 1 . . . . 2 . . 1 . . . 2 . 1 1 . . 10 Impact 13 | . . 1 . . . . . . 5 . 1 . . . . 2 . . . . . . 2 . 1 1 . . . Kinetic 11 | . . . . . . . . . . . . . . . . . . . 1 . . . . . . . . . 10 Secondary . | . . . . . . . . . . . . . . . . . . . . . . . . . . . . . . Self-Inflicted Damage 65 | . . . . . . . . . . . . . . . . . . . . . . . . . . . . . 65 Shots 1 | . . . . . . . . . . . . . . . . . . . . . . . . . . . . . 1 Rammed 3 | . . . . . . . . . . . . . . . . . . . . . . . . . . . . . 3 Targets Rammed 19 | 5 2 2 . 1 6 . . . . . . . . . . . . . . . . . . . . . . . 3 Kicked 16 | 5 2 2 . 1 6 . . . . . . . . . . . . . . . . . . . . . . . . Crushed . | . . . . . . . . . . . . . . . . . . . . . . . . . . . . . . Highest Temperature 1503 | 60 243 78 . . 215 266 130 4 18 . 25 55 218 . 57 309 8 276 146 27 9 79 86 . 1 2 . 228 1503 Average Temperature 54 | 31 87 28 . . 90 88 124 4 1 . 10 23 49 . 27 55 3 31 40 12 3 35 24 . 1 1 . 130 99 Received Heat Transfer 2296 | . 270 60 . . 819 45 . . 54 . 24 15 . . 9 54 . . 54 . . 9 60 . . . 9 . 814 Effects 15 | . 2 . . . . 3 . . . . . . 1 . . 3 . 1 . . . . . . . . . . 5 Shutdowns 2 | . . . . . . . . . . . . . . . . . . . . . . . . . . . . . 2 Energy Bleed 3 | . . . . . . . . . . . . . 1 . . 1 . 1 . . . . . . . . . . . Interference 7 | . 2 . . . . 3 . . . . . . . . . 2 . . . . . . . . . . . . . Short Circuit 1 | . . . . . . . . . . . . . . . . . . . . . . . . . . . . . 1 Damage (minor) 1 | . . . . . . . . . . . . . . . . . . . . . . . . . . . . . 1 Damage (core) 1 | . . . . . . . . . . . . . . . . . . . . . . . . . . . . . 1 Siege Activations 1 | . . . . . . . . . . . . . . . . . . . . . . . . . . . . . 1 Total Turns 16 | . . . . . . . . . . . . . . . . . . . . . . . . . . . . . 16 Longest Duration 16 | . . . . . . . . . . . . . . . . . . . . . . . . . . . . . 16 Martial Activations . | . . . . . . . . . . . . . . . . . . . . . . . . . . . . . . Shielding Activations . | . . . . . . . . . . . . . . . . . . . . . . . . . . . . . . Robots Disrupted . | . . . . . . . . . . . . . . . . . . . . . . . . . . . . . . Combat Hostiles . | . . . . . . . . . . . . . . . . . . . . . . . . . . . . . . Robots Corrupted 13 | . . . . . . . . . 3 . 1 . . . . 3 . . . . . . 2 . 1 3 . . . Combat Hostiles 1 | . . . . . . . . . . . . . . . . . . . . . . . . . 1 . . . . Parts Fried 20 | . . . . . . . . . 4 . . . . . 2 5 . . . . . . 4 . 1 3 . . 1 Impact Corruptions 53 | . . . . . . . . . 14 . 4 . . . . 5 . . . . 10 . 4 . 5 11 . . . Robots Melted 2 | . 1 . . . 1 . . . . . . . . . . . . . . . . . . . . . . . . Combat Hostiles 2 | . 1 . . . 1 . . . . . . . . . . . . . . . . . . . . . . . . Parts Melted 28 | . 6 . . . 19 . . . . . . . . . . . . . . . . . . . . . . . 3 Heat Transferred 18492 | 62 2634 333 . . 5809 . . . . . . . . . . . . . . . . . . . . . . . 9654 Parts Sabotaged . | . . . . . . . . . . . . . . . . . . . . . . . . . . . . . . Parts Stolen . | . . . . . . . . . . . . . . . . . . . . . . . . . . . . . . Parts Stripped . | . . . . . . . . . . . . . . . . . . . . . . . . . . . . . . Power Chain Reactions . | . . . . . . . . . . . . . . . . . . . . . . . . . . . . . . Alert | -11 -10 -10 -10 -9 -8 -8 -8 -8 -6 -6 -6 -6 -6 -6 -5 -5 -5 -5 -5 -5 -5 -4 -4 -4 -4 -3 -2 -2 -2 ------- Run | Yrd Mat Min Exi Min Mat Sto Rec Scr Fac Was Fac Low Low Dat Pro Fac Was Fac Upp Upp Zhi Pro Fac Arm Lab Res Res Qua Frg Maximum Alert Level 3 | . . . . . 1 1 . . 1 . . . . . . 1 . . . . . . 2 1 . . . . 3 Low Security (%) 78 | 100 100 100 . 100 95 82 100 . 93 100 100 . . . . 96 100 100 . . . . 33 98 . 100 100 100 35 Level 1 11 | . . . . . 4 17 . . 6 . . . . . . 3 . . . . . . 62 1 . . . . 20 Level 2 4 | . . . . . . . . . . . . . . . . . . . . . . . 3 . . . . . 20 Level 3 5 | . . . . . . . . . . . . . . . . . . . . . . . . . . . . . 23 Level 4 . | . . . . . . . . . . . . . . . . . . . . . . . . . . . . . . Level 5 . | . . . . . . . . . . . . . . . . . . . . . . . . . . . . . . High Security . | . . . . . . . . . . . . . . . . . . . . . . . . . . . . . . Max Security . | . . . . . . . . . . . . . . . . . . . . . . . . . . . . . . Peak Influence 1053 | 5 162 40 . . 251 301 155 . 262 91 128 . . . . 239 81 49 . . . . 433 195 . 125 62 35 1053 Initial 209 | . 3 27 . . . 101 117 . . 91 56 . . . . 25 81 49 . . . . 209 168 . . 62 . 1 Average 152 | . 89 10 . . 86 149 126 . 46 87 78 . . . . 30 76 20 . . . . 277 170 . 78 25 10 379 Influence Increases 6185 | 5 321 50 . . 828 330 68 . 453 . 219 90 . . 80 452 . 21 210 45 10 150 765 57 . 216 48 53 1714 Destroy 0b10 Robot/C 1800 | . 180 40 . . 540 . . . 20 . . . . . 20 . . . 80 . . . . . . . . . 920 Destroy 0b10 Robot/NC 210 | 5 15 . . . 55 10 . . 20 . 5 . . . . 15 . . . . 10 . 15 . . 30 . . 30 Destroy Leader 356 | . 44 10 . . 120 2 . . 12 . . . . . . 6 . . 10 . . . 2 . . . . . 150 Allied During Kill 55 | . . . . . . . . . . . . . . . . . . . . . . . . . . . . . 55 Successful Hack 260 | . 7 . . . 6 . 8 . 45 . 12 . . . . 26 . . . . . . 24 . . . . 8 124 Select Force Hacks 80 | . . . . . . . 60 . 20 . . . . . . . . . . . . . . . . . . . . Disable Machine 300 | . . . . . 30 30 . . 75 . . . . . . 45 . 15 . . . . 15 . . . . 30 60 Anti-Garrison Action 200 | . . . . . . . . . . . . . . . . . . . . . . . 200 . . . . . . Destroy Structure 329 | . . . . . 2 18 . . 21 . 22 . . . . 30 . 6 . . . . 44 12 . 6 18 . 150 Advance Influence 150 | . . . . . . . . . . . . . . . . . . . . . . . 150 . . . . . . Partial Spotted 240 | . . . . . . 60 . . 45 . 30 . . . . 30 . . . . . . . . . 30 15 . 30 Lose Combat Pursuer 2205 | . 75 . . . 75 210 . . 195 . 150 90 . . 60 300 . . 120 45 . 150 315 45 . 150 15 15 195 Influence Decreases 5129 | . 256 120 . . 587 270 214 155 191 181 249 101 40 . 40 259 162 91 81 65 120 55 516 206 195 105 159 50 661 Entered New Map 1531 | . 2 43 . . . 140 184 155 . 171 25 20 8 . . 15 152 22 1 25 110 . 36 176 195 . 49 . 2 Time Decay 2862 | . 244 77 . . 467 120 30 . 188 10 214 81 22 . 40 219 10 69 80 40 10 50 270 30 . 60 80 40 411 Search Patrol Dispatched 150 | . . . . . . . . . . . . . . . . . . . . . . . 150 . . . . . . Lost Part 475 | . 10 . . . 70 10 . . 3 . 10 . 10 . . 9 . . . . . 5 60 . . . 30 10 248 Purge Threat 111 | . . . . . 50 . . . . . . . . . . 16 . . . . . . . . . 45 . . . Squads Dispatched 84 | . 2 . . . 7 1 . . 10 . 8 . . . . 12 . 5 . . . 1 11 4 . 2 4 2 15 Investigation 49 | . . . . . 2 . . . 8 . 5 . . . . 9 . 5 . . . . 8 3 . 1 1 . 7 Extermination 10 | . . . . . . . . . 1 . 2 . . . . 3 . . . . . . 2 . . 1 . 1 . Reinforcement 13 | . 2 . . . 3 1 . . 1 . 1 . . . . . . . . . . . 1 1 . . . 1 2 Assault 1 | . . . . . . . . . . . . . . . . . . . . . . 1 . . . . . . . Garrison 2 | . . . . . 2 . . . . . . . . . . . . . . . . . . . . . . . . Intercept 9 | . . . . . . . . . . . . . . . . . . . . . . . . . . . 3 . 6 Searches Triggered 1 | . . . . . . . . . . . . . . . . . . . . . . . 1 . . . . . . Data Miner Redirects 4 | . . . . . . . . . . . . . . . . . . . . . . . 4 . . . . . . Construction Impeded 1 | . . . . . 1 . . . . . . . . . . . . . . . . . . . . . . . . Haulers Reinforced . | . . . . . . . . . . . . . . . . . . . . . . . . . . . . . . Active Scanning Responses . | . . . . . . . . . . . . . . . . . . . . . . . . . . . . . . Cargo Convoy Interrupts . | . . . . . . . . . . . . . . . . . . . . . . . . . . . . . . Stealth | -11 -10 -10 -10 -9 -8 -8 -8 -8 -6 -6 -6 -6 -6 -6 -5 -5 -5 -5 -5 -5 -5 -4 -4 -4 -4 -3 -2 -2 -2 --------- Run | Yrd Mat Min Exi Min Mat Sto Rec Scr Fac Was Fac Low Low Dat Pro Fac Was Fac Upp Upp Zhi Pro Fac Arm Lab Res Res Qua Frg Distress Signals 18 | . 1 . . . 3 . . . 1 . . . . . . . . . . . . . 2 1 . . 1 1 8 Communications Jammed . | . . . . . . . . . . . . . . . . . . . . . . . . . . . . . . Distress Signals . | . . . . . . . . . . . . . . . . . . . . . . . . . . . . . . Times Spotted 454 | . 22 2 . . 42 24 . . 22 6 18 7 2 . 8 29 6 1 14 3 . 9 40 7 1 16 13 8 154 Peak Tracking Total 19 | . 5 2 . . 4 13 . . 8 6 7 7 2 . 6 12 6 1 6 3 . 9 13 9 1 11 13 5 19 Tactical Retreats 64 | . 4 . . . 3 3 . . 4 . 6 3 . . 3 6 . . 3 2 . 5 9 1 . 1 1 1 9 Traps | -11 -10 -10 -10 -9 -8 -8 -8 -8 -6 -6 -6 -6 -6 -6 -5 -5 -5 -5 -5 -5 -5 -4 -4 -4 -4 -3 -2 -2 -2 ------- Run | Yrd Mat Min Exi Min Mat Sto Rec Scr Fac Was Fac Low Low Dat Pro Fac Was Fac Upp Upp Zhi Pro Fac Arm Lab Res Res Qua Frg Traps Triggered 20 | . . . . . 2 1 . . 2 . 1 . 1 . . 1 . 2 . . . . . . . . 2 3 5 Indirectly . | . . . . . . . . . . . . . . . . . . . . . . . . . . . . . . Trap Hack Attempts . | . . . . . . . . . . . . . . . . . . . . . . . . . . . . . . Triggered . | . . . . . . . . . . . . . . . . . . . . . . . . . . . . . . Disarmed . | . . . . . . . . . . . . . . . . . . . . . . . . . . . . . . Reprogrammed . | . . . . . . . . . . . . . . . . . . . . . . . . . . . . . . Reused . | . . . . . . . . . . . . . . . . . . . . . . . . . . . . . . Traps Extracted . | . . . . . . . . . . . . . . . . . . . . . . . . . . . . . . Installed . | . . . . . . . . . . . . . . . . . . . . . . . . . . . . . . Triggered . | . . . . . . . . . . . . . . . . . . . . . . . . . . . . . . Machines | -11 -10 -10 -10 -9 -8 -8 -8 -8 -6 -6 -6 -6 -6 -6 -5 -5 -5 -5 -5 -5 -5 -4 -4 -4 -4 -3 -2 -2 -2 ---------- Run | Yrd Mat Min Exi Min Mat Sto Rec Scr Fac Was Fac Low Low Dat Pro Fac Was Fac Upp Upp Zhi Pro Fac Arm Lab Res Res Qua Frg Machines Disabled 22 | . . . . . 2 2 . . 5 . . . . . . 3 . 1 . . . . 1 . 2 . . 2 4 Max in Single Turn 3 | . . . . . 1 1 . . 1 . . . . . . 1 . 1 . . . . 1 . 1 . . 1 3 Garrison Access 3 | . . . . . . . . . 1 . . . . . . 1 . . . . . . 1 . . . . . . Machines Repaired . | . . . . . . . . . . . . . . . . . . . . . . . . . . . . . . Machines Dismantled 1 | . . . . . . 1 . . . . . . . . . . . . . . . . . . . . . . . Machines Sabotaged . | . . . . . . . . . . . . . . . . . . . . . . . . . . . . . . Overloaded Fab Kills . | . . . . . . . . . . . . . . . . . . . . . . . . . . . . . . Hacking | -11 -10 -10 -10 -9 -8 -8 -8 -8 -6 -6 -6 -6 -6 -6 -5 -5 -5 -5 -5 -5 -5 -4 -4 -4 -4 -3 -2 -2 -2 --------- Run | Yrd Mat Min Exi Min Mat Sto Rec Scr Fac Was Fac Low Low Dat Pro Fac Was Fac Upp Upp Zhi Pro Fac Arm Lab Res Res Qua Frg Machines Accessed 127 | . 5 . 1 . 9 6 6 2 17 . 7 1 . 4 . 21 . 5 1 . 4 . 15 3 . 3 3 3 11 Terminals 57 | . 4 . . . 7 5 4 . 8 . 2 . . . . 11 . . 1 . . . 6 . . 2 . 3 4 Fabricators 9 | . . . . . . . . . 2 . 1 . . . . 1 . . . . . . 1 . . . . . 4 Repair Stations 10 | . . . . . . . . . 1 . 1 . . . . 2 . 1 . . . . 2 2 . . 1 . . Recycling Units 35 | . 1 . . . 2 . 2 . 5 . 3 . . . . 6 . 4 . . . . 5 1 . 1 2 . 3 Scanalyzers . | . . . . . . . . . . . . . . . . . . . . . . . . . . . . . . Garrison Access 4 | . . . . . . 1 . . 1 . . . . . . 1 . . . . . . 1 . . . . . . Total Hacks 377 | . 11 . 5 . 24 11 14 6 27 . 12 1 . 32 . 55 . 18 1 . 16 . 36 4 . 59 8 8 29 Successful 224 | . 7 . 5 . 7 . 10 6 14 . 8 1 . 32 . 26 . 6 1 . 16 . 24 3 . 36 5 3 14 Failed 152 | . 4 . . . 17 11 3 . 13 . 4 . . . . 29 . 12 . . . . 12 1 . 23 3 5 15 Catastrophic 24 | . . . . . 4 5 . . 2 . . . . . . 5 . 2 . . . . 1 . . 1 1 1 2 Database Lockouts 1 | . . . . . . . 1 . . . . . . . . . . . . . . . . . . . . . . Manual 213 | . 6 . . . 10 5 9 . 16 . 9 . . . . 33 . 13 . . . . 23 4 1 49 1 8 26 Terminals 207 | . 10 . . . 18 9 8 . 17 . 4 . . . . 41 . . 1 . . . 23 . . 54 . 8 14 Fabricators 14 | . . . . . . . . . 2 . 1 . . . . 1 . . . . . . 1 . . . . . 9 Repair Stations 18 | . . . . . . . . . 1 . 2 . . . . 2 . 3 . . . . 3 3 . . 4 . . Recycling Units 73 | . 1 . . . 6 . 6 . 6 . 5 . . . . 10 . 15 . . . . 8 1 . 5 4 . 6 Scanalyzers . | . . . . . . . . . . . . . . . . . . . . . . . . . . . . . . Garrison Access 5 | . . . . . . 2 . . 1 . . . . . . 1 . . . . . . 1 . . . . . . Terminal Hacks 134 | . 5 . 5 . 5 . 3 6 4 . 2 1 . 32 . 12 . . 1 . 16 . 5 . . 31 . 2 4 Record 23 | . . . 5 . . . . . . . . . . 11 . 1 . . 1 . 5 . . . . . . . . Part Schematic 14 | . . . . . . . . . . . . . . 11 . . . . . . 3 . . . . . . . . Robot Schematic 7 | . . . . . . . . . . . . . . 7 . . . . . . . . . . . . . . . Robot Analysis 11 | . . . . . . . . 5 . . . . . . . 1 . . . . 4 . . . . 1 . . . Prototype ID Bank 41 | . 2 . . . . . 2 . 2 . . . . 3 . 3 . . . . 4 . 2 . . 23 . . . Open Door 1 | . . . . . . . . . . . . 1 . . . . . . . . . . . . . . . . . Level Access Points 1 | . . . . . . . . . . . . . . . . . . . . . . . . . . 1 . . . Branch Access Points 4 | . 1 . . . 1 . . . 1 . . . . . . . . . . . . . . . . 1 . . . Emergency Access Points 2 | . . . . . . . . . . . 1 . . . . . . . . . . . . . . 1 . . . Machine Index 1 | . . . . . . . . . . . . . . . . . . . . . . . . . . . . . 1 Terminal Index 2 | . . . . . . . . . . . . . . . . 1 . . . . . . 1 . . . . . . Recycling Unit Index 3 | . . . . . . . . . . . 1 . . . . 1 . . . . . . . . . 1 . . . Alert Level 6 | . 1 . . . 3 . . . . . . . . . . 1 . . . . . . 1 . . . . . . Unreport Threat 5 | . . . . . 1 . . . . . . . . . . 2 . . . . . . . . . 2 . . . Locate Traps 6 | . 1 . . . . . . . 1 . . . . . . 1 . . . . . . 1 . . 1 . . 1 Investigation Status 1 | . . . . . . . . . . . . . . . . 1 . . . . . . . . . . . . . Zone Layout 5 | . . . . . . . 1 . . . . . . . . . . . . . . . . . . . . 2 2 Proto ID Catalog 1 | . . . . . . . . 1 . . . . . . . . . . . . . . . . . . . . . Fabricator Hacks . | . . . . . . . . . . . . . . . . . . . . . . . . . . . . . . Repair Station Hacks 3 | . . . . . . . . . . . . . . . . . . . . . . . . . . . 3 . . Scan Component 2 | . . . . . . . . . . . . . . . . . . . . . . . . . . . 2 . . Repair 1 | . . . . . . . . . . . . . . . . . . . . . . . . . . . 1 . . Recycling Unit Hacks 10 | . 1 . . . 1 . 3 . . . 1 . . . . . . 1 . . . . 2 . . . 1 . . Recycle Component 1 | . . . . . . . . . . . . . . . . . . 1 . . . . . . . . . . . Retrieve Components 9 | . 1 . . . 1 . 3 . . . 1 . . . . . . . . . . . 2 . . . 1 . . Scanalyzer . | . . . . . . . . . . . . . . . . . . . . . . . . . . . . . . Garrison Access Hacks 2 | . . . . . . . . . 1 . . . . . . 1 . . . . . . . . . . . . . Seal Access 2 | . . . . . . . . . 1 . . . . . . 1 . . . . . . . . . . . . . Unauthorized Hacks 75 | . 1 . . . 1 . 4 . 9 . 5 . . . . 13 . 5 . . . . 17 3 . 5 1 1 10 Terminals 27 | . 1 . . . 1 . 2 . 1 . 1 . . . . 4 . . . . . . 8 . . 4 . 1 4 Track 2 | . . . . . . . . . . . . . . . . . . . . . . . 1 . . 1 . . . Assimilate 1 | . . . . . . . . . . . . . . . . . . . . . . . 1 . . . . . . Botnet 18 | . 1 . . . 1 . 2 . 1 . 1 . . . . 4 . . . . . . 3 . . 2 . 1 2 Disrupt 4 | . . . . . . . . . . . . . . . . . . . . . . . 2 . . . . . 2 Operators 2 | . . . . . . . . . . . . . . . . . . . . . . . 1 . . 1 . . . Fabricators 7 | . . . . . . . . . 2 . . . . . . 1 . . . . . . 1 . . . . . 3 Liberate 5 | . . . . . . . . . 1 . . . . . . . . . . . . . 1 . . . . . 3 Download 1 | . . . . . . . . . 1 . . . . . . . . . . . . . . . . . . . . Recompile 1 | . . . . . . . . . . . . . . . . 1 . . . . . . . . . . . . . Repair Stations 9 | . . . . . . . . . 1 . 1 . . . . 2 . 1 . . . . 2 2 . . . . . Patch 9 | . . . . . . . . . 1 . 1 . . . . 2 . 1 . . . . 2 2 . . . . . Recycling Units 31 | . . . . . . . 2 . 5 . 3 . . . . 6 . 4 . . . . 5 1 . 1 1 . 3 Tunnel 2 | . . . . . . . 2 . . . . . . . . . . . . . . . . . . . . . . Fedlink 27 | . . . . . . . . . 5 . 3 . . . . 6 . 4 . . . . 5 1 . 1 1 . 1 Scraphulk 2 | . . . . . . . . . . . . . . . . . . . . . . . . . . . . . 2 Scanalyzers . | . . . . . . . . . . . . . . . . . . . . . . . . . . . . . . Garrison Access 1 | . . . . . . . . . . . . . . . . . . . . . . . 1 . . . . . . Jam 1 | . . . . . . . . . . . . . . . . . . . . . . . 1 . . . . . . Data Cores Recovered 3 | . . . . . . . . . . . 1 . . . . . . . . . . . 1 . . 1 . . . Used . | . . . . . . . . . . . . . . . . . . . . . . . . . . . . . . Hacking Detections 69 | . 4 . . . 9 6 2 . 9 . 5 . . . . 13 . 1 . . . . 7 1 . 3 1 1 7 Full Trace Events 4 | . . . . . 1 . . . 1 . . . . . . . . . . . . . . . . . . . 2 Feedback Events . | . . . . . . . . . . . . . . . . . . . . . . . . . . . . . . Feedback Blocked . | . . . . . . . . . . . . . . . . . . . . . . . . . . . . . . Robot Schematics Acquired 7 | . . . . . . . . . . . . . . 7 . . . . . . . . . . . . . . . Robots Built . | . . . . . . . . . . . . . . . . . . . . . . . . . . . . . . Authchips . | . . . . . . . . . . . . . . . . . . . . . . . . . . . . . . Time . | . . . . . . . . . . . . . . . . . . . . . . . . . . . . . . Total Robot Build Rating . | . . . . . . . . . . . . . . . . . . . . . . . . . . . . . . Part Schematics Acquired 14 | . . . . . . . . . . . . . . 11 . . . . . . 3 . . . . . . . . Parts Built . | . . . . . . . . . . . . . . . . . . . . . . . . . . . . . . Authchips . | . . . . . . . . . . . . . . . . . . . . . . . . . . . . . . Time . | . . . . . . . . . . . . . . . . . . . . . . . . . . . . . . Total Part Build Rating . | . . . . . . . . . . . . . . . . . . . . . . . . . . . . . . Parts Repaired 1 | . . . . . . . . . . . . . . . . . . . . . . . . . . . 1 . . Time 88 | . . . . . . . . . . . . . . . . . . . . . . . . . . . 88 . . Parts Recycled 1 | . . . . . . . . . . . . . . . . . . 1 . . . . . . . . . . . Recycled Matter . | . . . . . . . . . . . . . . . . . . . . . . . . . . . . . . Retrieved Matter . | . . . . . . . . . . . . . . . . . . . . . . . . . . . . . . Retrieved Components 23 | . 3 . . . 9 . . . . . 3 . . . . . . . . . . . 6 . . . 2 . . Parts Scanalyzed . | . . . . . . . . . . . . . . . . . . . . . . . . . . . . . . Part Schematics Acquired . | . . . . . . . . . . . . . . . . . . . . . . . . . . . . . . Parts Damaged . | . . . . . . . . . . . . . . . . . . . . . . . . . . . . . . Bothacking | -11 -10 -10 -10 -9 -8 -8 -8 -8 -6 -6 -6 -6 -6 -6 -5 -5 -5 -5 -5 -5 -5 -4 -4 -4 -4 -3 -2 -2 -2 ------------ Run | Yrd Mat Min Exi Min Mat Sto Rec Scr Fac Was Fac Low Low Dat Pro Fac Was Fac Upp Upp Zhi Pro Fac Arm Lab Res Res Qua Frg Used RIF Installer . | . . . . . . . . . . . . . . . . . . . . . . . . . . . . . . Robots Hacked 11 | . . . . . . . . 1 2 . . . 1 . . 2 . . . . . . 2 1 1 . 1 . . Non-combat 8 | . . . . . . . . . 2 . . . 1 . . 2 . . . . . . 2 . . . 1 . . Combat 3 | . . . . . . . . 1 . . . . . . . . . . . . . . . 1 1 . . . . Robot Hacks Applied 11 | . . . . . . . . 1 2 . . . 1 . . 2 . . . . . . 2 1 1 . 1 . . parse_system 4 | . . . . . . . . 1 . . . . 1 . . . . . . . . . . 1 1 . . . . no_distress 1 | . . . . . . . . . . . . . . . . . . . . . . . . . . . 1 . . find_chute 6 | . . . . . . . . . 2 . . . . . . 2 . . . . . . 2 . . . . . . Relay Couplers Released . | . . . . . . . . . . . . . . . . . . . . . . . . . . . . . . Fabnet Peak Effective % . | . . . . . . . . . . . . . . . . . . . . . . . . . . . . . . Robots Rewired . | . . . . . . . . . . . . . . . . . . . . . . . . . . . . . . Allies Hacked . | . . . . . . . . . . . . . . . . . . . . . . . . . . . . . . Hacks Repelled . | . . . . . . . . . . . . . . . . . . . . . . . . . . . . . . Allies | -11 -10 -10 -10 -9 -8 -8 -8 -8 -6 -6 -6 -6 -6 -6 -5 -5 -5 -5 -5 -5 -5 -4 -4 -4 -4 -3 -2 -2 -2 -------- Run | Yrd Mat Min Exi Min Mat Sto Rec Scr Fac Was Fac Low Low Dat Pro Fac Was Fac Upp Upp Zhi Pro Fac Arm Lab Res Res Qua Frg Total Allies 2 | . . . . . . . . . . . . . . . . . . . . . . . . . . . . . 2 Largest Group 2 | . . . . . . . . . . . . . . . . . . . . . . . . . . . . . 2 Highest-Rated Group 278 | . . . . . . . . . . . . . . . . . . . . . . . . . . . . . 278 Highest-Rated Ally 139 | . . . . . . . . . . . . . . . . . . . . . . . . . . . . . 139 Total Orders . | . . . . . . . . . . . . . . . . . . . . . . . . . . . . . . Ally Attacks 27 | . . . . . . . . . . . . . . . . . . . . . . . . . . . . . 27 Total Damage 1541 | . . . . . . . . . . . . . . . . . . . . . . . . . . . . . 1541 Kills 11 | . . . . . . . . . . . . . . . . . . . . . . . . . . . . . 11 Allies Corrupted . | . . . . . . . . . . . . . . . . . . . . . . . . . . . . . . Allies Melted 1 | . . . . . . . . . . . . . . . . . . . . . . . . . . . . . 1 Intel | -11 -10 -10 -10 -9 -8 -8 -8 -8 -6 -6 -6 -6 -6 -6 -5 -5 -5 -5 -5 -5 -5 -4 -4 -4 -4 -3 -2 -2 -2 ------- Run | Yrd Mat Min Exi Min Mat Sto Rec Scr Fac Was Fac Low Low Dat Pro Fac Was Fac Upp Upp Zhi Pro Fac Arm Lab Res Res Qua Frg Active Infowar (turns) 6578 | . . . . . 39 246 72 248 571 31 451 183 146 19 111 732 34 162 365 92 67 117 580 68 97 144 193 112 1698 Optics 5804 | . . . . . . . . . 499 31 451 183 146 19 111 635 34 162 365 92 67 117 580 68 97 144 193 112 1698 Sensors 4208 | . . . . . 39 246 72 248 571 31 451 183 139 19 111 705 34 162 365 92 67 117 463 68 25 . . . . Cloaking 430 | . . . . . . . . . . . . . . . . . . . . . . . 62 22 14 144 188 . . Jamming 1 | . . . . . . . . . . . . . . . . . . . . . . . 1 . . . . . . Robot Analysis Total 11 | . . . . . . . . 5 . . . . . . . 1 . . . . 4 . . . . 1 . . . Derelict Logs Recovered 10 | . . 1 . . . . . . . . . . 1 . 2 . . . 2 3 . 1 . . . . . . . Drone Launches . | . . . . . . . . . . . . . . . . . . . . . . . . . . . . . . Drone Recoveries . | . . . . . . . . . . . . . . . . . . . . . . . . . . . . . . Exploration | -11 -10 -10 -10 -9 -8 -8 -8 -8 -6 -6 -6 -6 -6 -6 -5 -5 -5 -5 -5 -5 -5 -4 -4 -4 -4 -3 -2 -2 -2 ------------- Run | Yrd Mat Min Exi Min Mat Sto Rec Scr Fac Was Fac Low Low Dat Pro Fac Was Fac Upp Upp Zhi Pro Fac Arm Lab Res Res Qua Frg Turns Passed 9251 | 73 545 261 182 21 1621 255 72 249 571 31 451 183 146 19 111 732 34 162 365 92 67 117 580 68 97 144 193 112 1697 Spaces Moved 15530 | 41 269 183 152 17 895 551 251 911 1537 106 918 586 532 76 289 1829 108 271 715 353 164 403 1339 144 131 419 441 403 1496 Core 20 | 6 . . . . . . . . . . . . . . . . . . . . . . . . . . . . 14 Treads 330 | . . . . . . . . . . . . . . . . . . . . . . . . . . . . . 330 Legs 1530 | 35 269 183 152 17 784 . . . . . . . . . . . . . . . . . . . . . . . 90 Wheels 316 | . . . . . . . . . . . . . . . . . . . . . . . . . . . . . 316 Hover . | . . . . . . . . . . . . . . . . . . . . . . . . . . . . . . Flight 13334 | . . . . . 111 551 251 911 1537 106 918 586 532 76 289 1829 108 271 715 353 164 403 1339 144 131 419 441 403 746 Fastest Speed 5 | 50 120 120 120 120 26 26 26 26 24 24 20 20 20 24 20 20 26 26 22 26 26 23 20 27 20 18 18 21 5 Average Speed 39 | 112 120 120 120 120 112 26 26 26 24 24 23 23 23 24 23 23 26 26 25 26 26 26 26 27 26 24 24 23 79 Slowest Speed 240 | 120 120 120 120 120 190 98 26 26 97 24 24 24 24 24 24 101 26 26 97 26 27 27 30 27 27 26 26 25 240 Overloaded Moves 1086 | . . . . . . . . . . . 16 36 34 . 38 218 . . 42 . . 19 169 . 4 68 94 132 216 Propulsion Burnouts 2 | . . . . . . . . . . . . . . . . . . . . . . . . . . . . . 2 Robots Hopped 75 | . . . . . . 7 1 2 9 . 3 1 . . . 7 . . . 5 . . 25 . . 2 6 2 5 Potential Cave-ins . | . . . . . . . . . . . . . . . . . . . . . . . . . . . . . . Cave-ins Triggered . | . . . . . . . . . . . . . . . . . . . . . . . . . . . . . . Teleports 1 | . . . . . . . . . . . . . . . . . . . . . . . . 1 . . . . . Exploration Rate (%) 51 | 4 53 42 53 5 71 77 60 66 40 85 33 61 78 73 49 56 96 11 74 63 61 62 43 15 95 22 12 50 46 Regions Visited 29 Branch Regions 18 Pre-discovered Areas 10 | . . 1 1 . . . 2 1 1 . . . . 1 . . . . . . 3 . . . . . . . . Known Exits Taken 21 | . 1 . . . 1 1 1 1 . . 1 1 1 1 1 . . 1 1 1 1 1 1 1 1 1 1 1 . Unknown Exits Taken 4 | 1 . 1 1 1 . . . . . . . . . . . . . . . . . . . . . . . . . Scrap Searched 15 | . . 1 . . . . . 4 . . . 1 2 . . . . . 3 1 . 3 . . . . . . . Spaces Dug 124 | . . . . . . 18 . . 21 . 22 3 . . . 15 . 3 2 . . . 22 6 . 3 6 . 3 Terrain Destroyed 182 | . . . . . 2 18 . . 21 . 22 3 . . . 15 . 3 10 . . . 22 6 . 3 6 . 51 Melee 117 | . . . . . . 18 . . 21 . 22 3 . . . 14 . 3 2 . . . 21 6 . 3 4 . . Projectile 47 | . . . . . 2 . . . . . . . . . . 1 . . 8 . . . 1 . . . 2 . 33 AOE 18 | . . . . . . . . . . . . . . . . . . . . . . . . . . . . . 18 Terrain Rammed . | . . . . . . . . . . . . . . . . . . . . . . . . . . . . . . Walls Destroyed . | . . . . . . . . . . . . . . . . . . . . . . . . . . . . . . Machines Disabled . | . . . . . . . . . . . . . . . . . . . . . . . . . . . . . . Actions | -11 -10 -10 -10 -9 -8 -8 -8 -8 -6 -6 -6 -6 -6 -6 -5 -5 -5 -5 -5 -5 -5 -4 -4 -4 -4 -3 -2 -2 -2 --------- Run | Yrd Mat Min Exi Min Mat Sto Rec Scr Fac Was Fac Low Low Dat Pro Fac Was Fac Upp Upp Zhi Pro Fac Arm Lab Res Res Qua Frg Total 17650 | 60 392 211 151 17 1265 607 256 920 1652 110 1101 622 550 75 329 2073 113 354 866 347 175 408 1481 158 168 441 509 413 1826 Wait 1173 | 1 55 16 . . 118 31 . . 68 5 143 35 17 . 40 187 3 74 118 . . . 107 . 4 3 51 . 97 Move 15365 | 40 268 182 151 17 894 537 248 907 1519 105 911 583 531 75 288 1815 107 270 714 344 163 402 1294 143 130 414 429 398 1486 Hop 64 | . . . . . . 6 1 1 9 . 3 1 . . . 7 . . . 3 . . 19 . . 2 5 2 5 Pick Up 107 | 6 4 . . . 20 . 3 3 4 . 8 . . . . 11 1 2 1 . 1 1 7 1 2 4 6 6 16 Fast Attach 78 | 6 2 . . . 15 1 . 2 . . . . . . . . . . 2 . 2 1 6 . 7 2 1 . 31 Attach 71 | . . . . . 9 1 1 . 4 . 1 . 1 . . 8 . 1 . . . . 5 . 3 1 3 3 30 Detach 24 | . . . . . 1 1 . . . . . . . . . 1 . . 1 . . . 1 . 1 . 1 . 17 Swap 88 | . 5 2 . . 24 . 1 2 5 . 3 . . . . 9 1 1 6 . 2 2 9 6 1 2 2 . 5 Drop 118 | . 5 2 . . 33 1 2 4 2 . 7 . . . . 8 1 2 1 . 2 1 5 1 7 4 3 2 25 Fire 321 | 2 51 7 . . 144 . . . . . . . . . . 2 . . 21 . . . 1 . . . 2 . 91 Melee 195 | . . . . . 1 21 . 1 41 . 25 3 1 . 1 25 . 4 2 . 5 1 27 7 13 9 6 2 . Ram . | . . . . . . . . . . . . . . . . . . . . . . . . . . . . . . Kick 15 | 5 2 2 . . 6 . . . . . . . . . . . . . . . . . . . . . . . . Crush 3 | . . . . . . . . . . . . . . . . . . . . . . . . . . . . . 3 Escape Stasis . | . . . . . . . . . . . . . . . . . . . . . . . . . . . . . . Rewire . | . . . . . . . . . . . . . . . . . . . . . . . . . . . . . . Trap . | . . . . . . . . . . . . . . . . . . . . . . . . . . . . . . Miscellaneous 28 | . . . . . . 8 . . . . . . . . . . . . . . . . . . . . . . 20 Route ------- -11/Scrapyard -10/Materials (discovered 4 exits: [*Mat x2] / *Min x2) -10/Mines -10/Exiles -9/Mines -8/Materials (discovered 4 exits: *Fac x3 / *Sto) -8/Storage (discovered 2 exits: *Fac / *Rec) -8/Recycling (discovered 2 exits: *Fac / *Scr) -8/Scraptown -6/Factory (discovered 5 exits: *Fac / *Low x2 / *Ext x2) -6/Waste -6/Factory -6/Lower Caves -6/Lower Caves (discovered 2 exits: *Fac / *Dat) -6/Data Miner -5/Proximity Caves -5/Factory (discovered 5 exits: *Fac x3 / *Upp x2) -5/Waste -5/Factory -5/Upper Caves -5/Upper Caves -5/Zhirov -4/Proximity Caves -4/Factory (discovered 5 exits: *Res x3 / Upp / *Arm) -4/Armory -4/Lab -3/Research (discovered 5 exits: *Res x3 / Tes x2) -2/Research -2/Quarantine (discovered 3 exits: [Acc] / [*Sec] / *Frg) -2/Protoforge History --------- Turn | Location | Event 10 | -11/Scrapyard | Discovered new exit (range 15) 74 | -11/Scrapyard | Entered Materials 79 | -10/Materials | Identified exit to Mines 312 | -10/Materials | Build established: Mutant 483 | -10/Materials | Discovered new exit (range 10) 556 | -10/Materials | Discovered new exit (range 10) 614 | -10/Materials | Build established: Scavenger-Mutant 619 | -10/Materials | Entered Mines 620 | -10/Mines | Learned location of Storage (-8) 841 | -10/Mines | Learned Materials emergency access door positions 874 | -10/Mines | Deemed a non-threat by the Exiles lab entrance 875 | -10/Mines | Discovered new exit (range 5) 880 | -10/Mines | Entered Exiles 909 | -10/Exiles | Met 8R-AWN 930 | -10/Exiles | Met EX-HEX 963 | -10/Exiles | Met EX-BIN 980 | -10/Exiles | Met EX-DEC 1008 | -10/Exiles | Learned location of Zion (-7) 1048 | -10/Exiles | Discovered new exit (range 11) 1062 | -10/Exiles | Entered Mines 1064 | -9/Mines | Discovered new exit (range 13) 1083 | -9/Mines | Entered Materials 1083 | -8/Materials | Evolved 4 slots: Propulsion x2, Utility x2 1398 | -8/Materials | Met 7R-MNS 1483 | -8/Materials | Garrison activated, responded to threat 1543 | -8/Materials | Lost 4 parts (3n1u) 1593 | -8/Materials | Garrison activated, responded to threat 1830 | -8/Materials | Discovered new exit (range 13) 1849 | -8/Materials | Identified exit to Factory 2043 | -8/Materials | Discovered exit to Factory (range 9) 2184 | -8/Materials | Build established: Mutant 2332 | -8/Materials | Core integrity fell below 50% 2405 | -8/Materials | Discovered exit to Factory (range 16) 2560 | -8/Materials | Identified exit to Storage 2704 | -8/Materials | Entered Storage 2905 | -8/Storage | Discovered exit to Factory (range 7) 2958 | -8/Storage | Used back door to open Recycling access 2958 | -8/Storage | Discovered new exit (range 5) 2959 | -8/Storage | Identified exit to Recycling 2959 | -8/Storage | Entered Recycling 3001 | -8/Recycling | Discovered new exit (range 15) 3025 | -8/Recycling | Scanned before Scraplab entrance 3028 | -8/Recycling | Entered Scraplab 3030 | -8/Recycling | Discovered new exit (range 3) 3031 | -8/Recycling | Identified exit to Scraptown 3031 | -8/Recycling | Entered Scraptown 3031 | -8/Scraptown | System corruption cleaned by C-Scrubber 3108 | -8/Scraptown | Visited UFD Registry 3108 | -8/Scraptown | Registered with UFD as "Thermomod" 3113 | -8/Scraptown | Build established: Sprinter 3113 | -8/Scraptown | Visited CR-KLE's Repair Center 3123 | -8/Scraptown | Learned location of Extension (-6) 3129 | -8/Scraptown | Visited The Evicted 3148 | -8/Scraptown | Visited Junk Repository 3159 | -8/Scraptown | Visited Junk Repository 3164 | -8/Scraptown | Visited Derelict Rescue Squad 3168 | -8/Scraptown | Visited Analyses Database 3173 | -8/Scraptown | Visited Research Penetration Think Tank 3179 | -8/Scraptown | Visited Supply Room 3187 | -8/Scraptown | Visited Science Guys 3196 | -8/Scraptown | Visited Observation Area 3241 | -8/Scraptown | CR-KLE repaired 6 parts 3266 | -8/Scraptown | Met Optimus 3266 | -8/Scraptown | Accepted into 0bPrime 3280 | -8/Scraptown | Discovered new exit (range 3) 3280 | -8/Scraptown | Identified exit to Factory 3280 | -8/Scraptown | Entered Factory 3280 | -6/Factory | Evolved 4 slots: Power x1, Propulsion x1, Utility x2 3351 | -6/Factory | Loaded intel: 8 recycling unit locations 3375 | -6/Factory | Discovered new exit (range 3) 3376 | -6/Factory | Identified exit to Extension 3420 | -6/Factory | Learned location of Protoforge (-2) 3639 | -6/Factory | Build established: Scout 3686 | -6/Factory | Discovered new exit (range 9) 3703 | -6/Factory | Discovered new exit (range 5) 3840 | -6/Factory | Identified exit to Lower Caves 3851 | -6/Factory | Sucked down chute 3851 | -6/Factory | Entered Waste 3852 | -6/Waste | Spotted C-40 Crusher 3861 | -6/Waste | Spotted C-40 Crusher 3864 | -6/Waste | Spotted C-40 Crusher 3864 | -6/Waste | Spotted C-40 Crusher 3876 | -6/Waste | Spotted C-40 Crusher 3878 | -6/Waste | Spotted C-40 Crusher 3879 | -6/Waste | Discovered new exit (range 13) 3881 | -6/Waste | Identified exit to Factory 3882 | -6/Waste | Entered Factory 4098 | -6/Factory | Discovered exit to Lower Caves (range 5) 4101 | -6/Factory | Loaded intel: 8 recycling unit locations 4189 | -6/Factory | Spotted B-75 Beast 4333 | -6/Factory | Entered Lower Caves 4384 | -6/Lower Caves | Spotted B-75 Beast 4413 | -6/Lower Caves | Attracted the attention of an 0b10 checkpoint 4425 | -6/Lower Caves | Encountered a Warlord checkpoint 4515 | -6/Lower Caves | Discovered new exit (range 5) 4516 | -6/Lower Caves | Identified exit to Lower Caves 4516 | -6/Lower Caves | Entered another Lower Caves area 4529 | -6/Lower Caves | Spotted B-75 Beast 4530 | -6/Lower Caves | Discovered new exit (range 13) 4635 | -6/Lower Caves | Encountered a Warlord checkpoint 4660 | -6/Lower Caves | Discovered new exit (range 8) 4661 | -6/Lower Caves | Identified exit to Data Miner 4662 | -6/Lower Caves | Entered Data Miner 4662 | -6/Data Miner | Discovered new exit (range 6) 4666 | -6/Data Miner | Met Data Miner 4671 | -6/Data Miner | Learned location of Section 7 (-2) 4671 | -6/Data Miner | Acquired the access code to Warlord's prototype stash 4675 | -6/Data Miner | Received God Mode back door access code from Data Miner 4680 | -6/Data Miner | Identified exit to Proximity Caves 4681 | -6/Data Miner | Entered Proximity Caves 4689 | -5/Proximity Caves | Learned Factory trap positions 4690 | -5/Proximity Caves | Learned Factory stockpile data 4695 | -5/Proximity Caves | Spotted B-75 Beast 4791 | -5/Proximity Caves | Discovered new exit (range 4) 4792 | -5/Proximity Caves | Identified exit to Factory 4792 | -5/Proximity Caves | Entered Factory 4792 | -5/Factory | Evolved 2 slots: Utility x2 4793 | -5/Factory | Identified exit to Upper Caves 4794 | -5/Factory | Loaded intel: 87 trap records 4953 | -5/Factory | Discovered new exit (range 5) 4954 | -5/Factory | Identified exit to Factory 5002 | -5/Factory | Loaded intel: 8 recycling unit locations 5104 | -5/Factory | Build established: Hacker-Scout 5271 | -5/Factory | Discovered exit to Factory (range 8) 5275 | -5/Factory | Discovered exit to Factory (range 8) 5323 | -5/Factory | Discovered exit to Upper Caves (range 22) 5478 | -5/Factory | Lost 4 parts (3n1w) 5524 | -5/Factory | Sucked down chute 5524 | -5/Factory | Entered Waste 5527 | -5/Waste | Spotted C-40 Crusher 5528 | -5/Waste | Spotted C-40 Crusher 5530 | -5/Waste | Spotted C-40 Crusher 5535 | -5/Waste | Spotted C-40 Crusher 5536 | -5/Waste | Spotted C-40 Crusher 5539 | -5/Waste | Spotted C-40 Crusher 5553 | -5/Waste | Discovered new exit (range 10) 5558 | -5/Waste | Identified exit to Factory 5558 | -5/Waste | Entered Factory 5649 | -5/Factory | Loaded intel: 8 recycling unit locations 5685 | -5/Factory | Discovered exit to Upper Caves (range 5) 5720 | -5/Factory | Entered Upper Caves 5740 | -5/Upper Caves | Learned Factory terminal intel 5744 | -5/Upper Caves | Learned Factory terminal intel 5801 | -5/Upper Caves | Spotted B-75 Beast 5915 | -5/Upper Caves | Encountered a Warlord checkpoint 6076 | -5/Upper Caves | Discovered new exit (range 3) 6077 | -5/Upper Caves | Identified exit to Upper Caves 6085 | -5/Upper Caves | Entered another Upper Caves area 6094 | -5/Upper Caves | Encountered a Warlord checkpoint 6105 | -5/Upper Caves | Learned 12 Factory zone layouts 6149 | -5/Upper Caves | Discovered new exit (range 9) 6151 | -5/Upper Caves | Identified exit to Zhirov 6161 | -5/Upper Caves | Learned Factory terminal intel 6177 | -5/Upper Caves | Entered Zhirov 6177 | -5/Zhirov | Discovered new exit (range 3) 6188 | -5/Zhirov | Learned location of Quarantine (-2) 6188 | -5/Zhirov | Learned location of Command (-1) 6194 | -5/Zhirov | Found Alien Artifact 6194 | -5/Zhirov | Identified Integrated Reactor 6194 | -5/Zhirov | Installed Integrated Reactor, increased core energy generation (+10) 6210 | -5/Zhirov | Found Alien Artifact 6243 | -5/Zhirov | Identified exit to Proximity Caves 6244 | -5/Zhirov | Entered Proximity Caves 6246 | -4/Proximity Caves | Attracted the attention of an 0b10 outpost 6265 | -4/Proximity Caves | Attracted the attention of an 0b10 checkpoint 6292 | -4/Proximity Caves | Learned Research stockpile data 6340 | -4/Proximity Caves | Spotter reported a threat 6358 | -4/Proximity Caves | Discovered exit to Factory (range 10) 6361 | -4/Proximity Caves | Entered Factory 6361 | -4/Factory | Evolved 2 slots: Utility x2 6362 | -4/Factory | Identified exit to Upper Caves 6364 | -4/Factory | Loaded intel: 26 terminal locations 6378 | -4/Factory | Loaded intel: 8 recycling unit locations 6398 | -4/Factory | Incoming investigation squad redirected 6431 | -4/Factory | Incoming investigation squad redirected 6564 | -4/Factory | Discovered new exit (range 6) 6565 | -4/Factory | Identified exit to Research 6583 | -4/Factory | Spotted B-86 Titan 6656 | -4/Factory | Discovered exit to Research (range 22) 6775 | -4/Factory | Discovered exit to Research (range 11) 6827 | -4/Factory | Lost 5 parts (3n2u) 6861 | -4/Factory | Search patrols dispatched 6865 | -4/Factory | Incoming investigation squad redirected 6914 | -4/Factory | Incoming investigation squad redirected 6939 | -4/Factory | Discovered new exit (range 10) 6941 | -4/Factory | Identified exit to Armory 6941 | -4/Factory | Entered Armory 6942 | -4/Armory | Met VL-GR5, who suggested a friendly competition 7000 | -4/Armory | Loaded intel: 2 recycling unit locations 7008 | -4/Armory | Identified Transdimensional Reconstructor 7008 | -4/Armory | Warped through subspace to slip node 7008 | -4/Armory | Discovered new exit (range 1) 7008 | -4/Armory | Identified exit to Lab 7009 | -4/Armory | Entered Lab 7011 | -4/Lab | Discovered exit to Research (range 9) 7014 | -4/Lab | Unable to decrypt terminal 7014 | -4/Lab | Opened the door to a hidden lab 7014 | -4/Lab | Detected by scanners 7015 | -4/Lab | Gained access to the hidden lab's interior 7023 | -4/Lab | Confronted by A5 7052 | -4/Lab | Destroyed A5 7061 | -4/Lab | Found Alien Artifact 7061 | -4/Lab | Identified Integrated Dissipator 7061 | -4/Lab | Installed Integrated Dissipator, increased core heat dissipation (+20) 7068 | -4/Lab | Found Alien Artifact 7074 | -4/Lab | Found Prototype Energy Cannon 7074 | -4/Lab | Identified Potential Cannon 7083 | -4/Lab | Found Prototype Energy Gun 7083 | -4/Lab | Identified Hyp. EM Gauss Rifle 7087 | -4/Lab | Found Prototype Hackware 7087 | -4/Lab | Identified Quantum Router 7093 | -4/Lab | Found Hvy. Regenerative Plating 7106 | -4/Lab | Entered Research 7106 | -3/Research | Evolved 2 slots: Propulsion x1, Weapon x1 7141 | -3/Research | Spotted B-86 Titan 7152 | -3/Research | Identified exit to Testing 7152 | -3/Research | Identified exit to Research 7164 | -3/Research | Loaded intel: 5 recycling unit locations 7250 | -3/Research | Entered another Research area 7250 | -2/Research | Evolved 2 slots: Utility x1, Weapon x1 7259 | -2/Research | Loaded intel: 5 recycling unit locations 7367 | -2/Research | Build established: Wizard-Sprinter 7370 | -2/Research | Repaired Broken Cld. VTOL Module? 7408 | -2/Research | Intercept squad dispatched 7426 | -2/Research | Spotted Tracker 7426 | -2/Research | Spotted Tracker 7439 | -2/Research | Discovered new exit (range 17) 7440 | -2/Research | Spotted Combat Programmer 7442 | -2/Research | Spotted B-90 Cyclops 7442 | -2/Research | Identified exit to Quarantine 7443 | -2/Research | Entered Quarantine 7473 | -2/Quarantine | Lost 7 parts (1p1n3u2w) 7485 | -2/Quarantine | Found Alien Artifact 7487 | -2/Quarantine | Identified Subatomic Replicator 7487 | -2/Quarantine | Used Subatomic Replicator to replicate Alien Artifact 7511 | -2/Quarantine | Discovered new exit (range 13) 7537 | -2/Quarantine | Spotted Fortress 7553 | -2/Quarantine | Discovered new exit (range 6) 7553 | -2/Quarantine | Discovered new exit (range 6) 7554 | -2/Quarantine | Identified exit to Protoforge 7555 | -2/Quarantine | Entered Protoforge 7563 | -2/Protoforge | Spotted Hotshot 7563 | -2/Protoforge | Spotted Hotshot 7569 | -2/Protoforge | Superfortress began startup sequence 7618 | -2/Protoforge | Spotted Hotshot 7618 | -2/Protoforge | Spotted Hotshot 7624 | -2/Protoforge | Spotted AP7-3 7624 | -2/Protoforge | Spotted AP7-3 7635 | -2/Protoforge | Spotted Overlord 7636 | -2/Protoforge | Spotted SKR-2 7636 | -2/Protoforge | Spotted SKR-2 7636 | -2/Protoforge | Spotted SKR-2 7645 | -2/Protoforge | UFD initiated attack on Protoforge 7645 | -2/Protoforge | Loaded intel: 3 recycling unit locations 7657 | -2/Protoforge | Lost 7 parts (1p3n3u) 7683 | -2/Protoforge | Optimus greeted in Protoforge 7695 | -2/Protoforge | Found Centrium Heavy Armor Plating 7713 | -2/Protoforge | Lost 3 parts (1p2n) 7748 | -2/Protoforge | Spotted EXE-6 7749 | -2/Protoforge | Spotted EXE-6 7787 | -2/Protoforge | Lost 13 allies 7864 | -2/Protoforge | Identified Core Expander (x2) 7864 | -2/Protoforge | Installed Core Expander, added new Propulsion slot 7865 | -2/Protoforge | Installed Core Expander, added new Weapon slot 7866 | -2/Protoforge | Spotted Striker 7887 | -2/Protoforge | Found UFD Drillbomb 7969 | -2/Protoforge | UFD reported confirmed Drillbomb installation 8102 | -2/Protoforge | Forge Plexus network access discovered 8104 | -2/Protoforge | Spotted Striker 8109 | -2/Protoforge | Spotted Striker 8119 | -2/Protoforge | Spotted Decapitator 8119 | -2/Protoforge | Spotted Decapitator 8120 | -2/Protoforge | Spotted Striker 8120 | -2/Protoforge | Spotted Decapitator 8120 | -2/Protoforge | Spotted Striker 8123 | -2/Protoforge | Destroyed Striker 8123 | -2/Protoforge | Destroyed Striker 8149 | -2/Protoforge | Destroyed Striker 8150 | -2/Protoforge | Spotted Executioner 8153 | -2/Protoforge | Lost 8 allies 8153 | -2/Protoforge | Spotted Executioner 8155 | -2/Protoforge | Spotted Striker 8156 | -2/Protoforge | Spotted Striker 8162 | -2/Protoforge | Destroyed Striker 8167 | -2/Protoforge | Core integrity fell below 50% 8171 | -2/Protoforge | Destroyed Executioner 8198 | -2/Protoforge | Intercept squad dispatched 8201 | -2/Protoforge | Destroyed 18 combat bots 8225 | -2/Protoforge | Found 0bPrime Scrap Suit 8226 | -2/Protoforge | Spotted Tracker 8233 | -2/Protoforge | Spotted Striker 8233 | -2/Protoforge | Spotted Striker 8234 | -2/Protoforge | Spotted Executioner 8235 | -2/Protoforge | Spotted Striker 8235 | -2/Protoforge | Spotted Tracker 8278 | -2/Protoforge | Spotted Combat Programmer 8296 | -2/Protoforge | Installed UFD Drillbomb at designated target 8296 | -2/Protoforge | UFD reported confirmed Drillbomb installation 8297 | -2/Protoforge | Spotted Combat Programmer 8306 | -2/Protoforge | Lost 7 parts (1p2n2u2w) 8323 | -2/Protoforge | Found Exp. Core Analyzer 8326 | -2/Protoforge | Found Exp. Armor Integrity Analyzer 8329 | -2/Protoforge | Lost 10 allies 8435 | -2/Protoforge | Spotted Executioner 8445 | -2/Protoforge | Spotted Executioner 8454 | -2/Protoforge | Found UFD Drillbomb 8472 | -2/Protoforge | Spotted Striker 8473 | -2/Protoforge | Lost 9 allies 8478 | -2/Protoforge | Destroyed Striker 8519 | -2/Protoforge | Spotted Executioner 8519 | -2/Protoforge | Spotted Striker 8539 | -2/Protoforge | Destroyed Striker 8584 | -2/Protoforge | Spotted Executioner 8586 | -2/Protoforge | Spotted Executioner 8595 | -2/Protoforge | Destroyed Executioner 8613 | -2/Protoforge | Build established: Scavenger-Gunner 8629 | -2/Protoforge | Lost 6 allies 8655 | -2/Protoforge | UFD reported confirmed Drillbomb installation 8659 | -2/Protoforge | Spotted Executioner 8661 | -2/Protoforge | Spotted Striker 8690 | -2/Protoforge | Core integrity fell below 20% 8711 | -2/Protoforge | Found Cep. Variable Chargecaster 8712 | -2/Protoforge | Found Cep. Variable Chargecaster 8713 | -2/Protoforge | Found Cep. Variable Chargecaster 8714 | -2/Protoforge | Found Cep. Variable Chargecaster 8717 | -2/Protoforge | System corruption reached 10% 8723 | -2/Protoforge | Lost 7 allies 8741 | -2/Protoforge | Installed UFD Drillbomb at designated target 8741 | -2/Protoforge | UFD reported confirmed Drillbomb installation 8742 | -2/Protoforge | Spotted Executioner 8742 | -2/Protoforge | Spotted Striker 8763 | -2/Protoforge | P-80 Master assimilated allied Lugger 370 8784 | -2/Protoforge | Found Exp. Core Analyzer 8794 | -2/Protoforge | Intercept squad dispatched 8800 | -2/Protoforge | Lost 9 parts (1p4n3u1w) 8809 | -2/Protoforge | Spotted Tracker 8810 | -2/Protoforge | Spotted Tracker 8827 | -2/Protoforge | Found Cep. Antimissile System 8849 | -2/Protoforge | Spotted Striker 8851 | -2/Protoforge | Found 0bPrime Scrap Suit 8856 | -2/Protoforge | Optimus destroyed during the operation 8859 | -2/Protoforge | Spotted Striker 8861 | -2/Protoforge | Spotted Striker 8870 | -2/Protoforge | Spotted Executioner 8876 | -2/Protoforge | Destroyed Striker 8885 | -2/Protoforge | Spotted Combat Programmer 8895 | -2/Protoforge | Lost 5 allies 8943 | -2/Protoforge | Scraphulk reinforcements arrived 8945 | -2/Protoforge | Scraphulk reinforcements arrived 9090 | -2/Protoforge | Lost 4 allies 9112 | -2/Protoforge | Found UFD Drillbomb 9130 | -2/Protoforge | Found UFD Drillbomb 9151 | -2/Protoforge | Spotted Executioner 9152 | -2/Protoforge | Spotted Executioner 9165 | -2/Protoforge | Destroyed Executioner 9196 | -2/Protoforge | Lost 10 allies 9221 | -2/Protoforge | Spotted Executioner 9223 | -2/Protoforge | Spotted Striker 9236 | -2/Protoforge | Spotted Striker 9240 | -2/Protoforge | Spotted Executioner 9253 | -2/Protoforge | Core destroyed Last Messages --------------- 09247_ Destroyed Lgt. Antimatter Reactor. 09247_ L-61 Swordsman destroyed. 09247_ Slug penetrates 02FBN-D. 09247_ 02FBN-D destroyed. 09247_ Slug penetrates 02F23-K. 09248_ Power failure, Ovr. Antimatter Reactor shutdown. 09248_ Power failure, Lgt. Quantum Reactor shutdown. 09249_ Slug penetrates Pattern Transfigurator. 09250_ Cep. Variable Chargecaster broken. 09250_ Overheating: Short circuit. 09250_ Penetrated by Slug. 09250_ 02FBJ-D knocked back. 09250_ Mak. Salvage Targeting Computer fried. 09250_ 02FBJ-D destroyed. 09252_ Overheating: Ovr. Medium Treads damaged (-108). 09253_ Overheating: Core damaged (-232). Map ----- +----------------------------------------------------+ | ###??###############???????????## ?????##?????? | | ??????????????????##???????????## ????##?????? | | ??????????????????##???????????## ????##?????? | | ??????????????????##???????????## """ ##?????? | | ??????????????????##????######### "" ##?????? | | ??????????????????##????######### "" ##???### | | ??????????????????##????##????### ###??# # | | ??????????????????##????##????### ?# ##### | | ??????????????????##????##????####""""#"### ### ## | | ??????????????????########????#####" " " | | ??????????????????########????+ " " | | ???????#######????# #????# ###" % " | | ???????#????##????# ""? #????# ###" = * | | ???????#????## ???# ? #????# ###" [! *% | | ###????#????## ??? "" #????# ###" !% | | ###????# ???## ?# S"" ###### T "" * % %% | | ?##????# ?## #?"" #### " ""; % == % %%%%% | | ###????# ? ## ###;;#;#; ## ##;; %!!% %%%%%%% | | ###?? [##%;#%; =; ### ; ; %!%%%%&%%%%% | | ?????%!!%%*Ess%[%![% !!!!%[*###;;; %%%%%% % %% | | ????? !%!=%%=g[=!!%*%*%%!*!%=!=%![![= %& %% %%% ! | | ???????=[ !m!b=!!=!!%==%%=%% !%!= %% % %% = | | ??????? i|p!%[!=[!|%![===! =![ % %%% %% ! | | ??????????"" "%" *![ %%[!=%%% = = % % % % %! | | ???????????" " " " K%[= %%%% %%% %% =% | | ??????????"" """ "" %@ SS% % !%% % %% =% | | ???? %SS[ % ]!;; %"" | | ??????"" """ """ """ != =SS*% %* ;[&! " | | ???????????" """ """ " %% SS* ; ; " | | ??????????????"" """ % = % [;##;;;; ; " | | ????????????? %== % = #; ;; " " # | | ???????????? """ "" !%%|=%=!!=!! "% ;; # | | ?????????????""" "" =[%=%%%;;%;"" ;;" "" " | | ?????????????""" """ % *=%*% %%%%% "#"" """" " | | ?????????????? !=%!%%%% SS # " """%"# | | ????????????? %![*% %!SS %## " " | | ###############+##### ;##;==![=;;[;; % """""#"+#"% | | ####???????#??????? ; #### # ###### % %[ % % | | ####???????#?????? "##???######???## % % | | ???#???????#????? "##????????????#" %%%% | | ???#???????#???? ?##????????????###"##;&%% """" | | ???????????#??? ??##????????????## =!!" %%[ | | ???#???????#??"?????##????????????## !%= %%% " "# | | ? #???????#????????##???????????### " "! "% ""# | | ? #???????#????????##???????????# " " "% "= | | ? #???????#????????##???????????### " " "= %# " | | " #???????###?##################?#" " %"" " | | " #???????######################?##""##""" " # "R | | #???????##?????????# ##?####### " # "" | | #???????##?????????# ##???????### # "" | +----------------------------------------------------+ Best States ------------- Heat Dissipation 95 Energy Generation 59 Energy Capacity 2325 Matter Stores 300 Matter Capacity 300 Sight Range 23 Robot Scan Range 16 Terrain Scan Density 10 Cloak Strength 3 Additional Mass Support 9 Base Temperature (-) 100 Armor Coverage 2850 Resistance: TH 10 Resistance: EM 25 Propulsion Shielding 66 Point Defense Rating 480 Phase Shifting 15 Evasion (%) 91 Core Analysis 12 Armor Integrity Analysis 50 Recoil Reduction 4 Offensive Hacking 24 Defensive Hacking 39 Authchip Count 1 Item Schematics ----------------- Combat Drone Bay | -6/Data Miner | Free Lgt. Regenerative Plating | -6/Data Miner | Free Enh. Armored Leg | -6/Data Miner | Free Exp. Heat Sink | -6/Data Miner | Free Tiamat Missile Launcher | -6/Data Miner | Free Imp. Linear Gravjet | -6/Data Miner | Free Adv. Power Amplifier | -6/Data Miner | Free Hvy. Disruptor Cannon | -6/Data Miner | Free Disruptor Cannon | -6/Data Miner | Free Lgt. Antimatter Reactor | -6/Data Miner | Free Adv. Launcher Guidance Computer | -6/Data Miner | Free Assault Drone Bay | -5/Zhirov | Free Exp. Optical Array | -5/Zhirov | Free Imp. Arc Thrower | -5/Zhirov | Free Robot Schematics ------------------ B-60 Warrior | -6/Data Miner | Free B-48 Gladiator | -6/Data Miner | Free L-41 Fighter | -6/Data Miner | Free G-50 Soldier | -6/Data Miner | Free I-47 Archangel | -6/Data Miner | Free G-67 Veteran | -6/Data Miner | Free L-61 Swordsman | -6/Data Miner | Free Fabricated ------------ Nothing Repaired ---------- Cld. VTOL Module | 30% | -2/Research | Broken Alien Tech Used ----------------- Integrated Reactor Transdimensional Reconstructor Integrated Dissipator Subatomic Replicator Core Expander Achievements -------------- None Challenges ------------ None Game ------ Seed CatalystTiamatShield Manual? 0 Play Time 03:49:13 Cumulative 278.9 hours Start 2025.06.15 @ 15:50:17 End 2025.06.15 @ 20:24:12 Sessions 1 Manual Loads 0 Difficulty Rogue Special Mode None Game No. 142 Rogue 142 Adventurer 0 Explorer 0 Win Type - Total 5 Types 4/0/1/0/0/0/0/0/0/0 Lore% 78 Gallery% 78 Achievement% 65 Wizard Run 0 Options --------- Layout 1 ASCII 0 Keyboard 0 Movement Mouse Keybinds 0 Fullscreen 1 Font 24/Smallcaps Map View 50x35 Zoom Use 0% Tactical HUD 1 Map Filters NONE Filters NONE Steam 1 RUN: f1094d0e-a906-4aea-aa4f-921e32bc6d1b